bitfinex-derivatives/quotes_ETHF0:USTF0_20251006
["timestamp","ask_amount","ask_price","bid_price","bid_amount"]
[1759764547130,0.3626,4694.4,4693.8,0.8296]
[1759764547334,0.8366,4694.4,4694.3,0.2421]
[1759764547536,0.6216,4694.0,4693.9,0.38332]
[1759764547841,0.9842,4694.0,4693.9,0.62542]
[1759764548343,0.6216,4694.5,4694.4,0.62538]
[1759764548532,3.2078,4694.6,4694.5,0.5972]
[1759764548739,0.474,4694.6,4694.5,0.4745]
[1759764548938,0.8366,4694.6,4694.4,0.38328]
[1759764549245,0.9842,4694.5,4694.2,0.38329]
[1759764549541,0.8366,4694.4,4694.2,0.38329]
[1759764549840,0.8366,4693.6,4693.5,0.38334]
[1759764550040,0.8366,4693.6,4693.5,0.62544]
[1759764550545,0.9842,4693.5,4693.4,0.38335]
[1759764552637,0.3626,4693.4,4693.0,3.2078]
[1759764552832,0.8366,4692.9,4692.8,0.6255]
[1759764553036,1.0516,4692.9,4692.8,0.6255]
[1759764553232,0.2332,4692.3,4692.2,0.2421]
[1759764553539,0.2332,4691.6,4691.5,0.24472689]
[1759764553738,0.9496,4691.6,4691.5,0.62823689]
[1759764553941,0.3626,4692.0,4691.9,0.8296]
[1759764554140,0.5958,4692.0,4691.9,0.8296]
[1759764554445,0.8108,4692.0,4691.9,0.4745]
[1759764554649,1.1992,4692.0,4691.9,0.4745]
[1759764555143,0.9842,4692.0,4691.9,0.4745]
[1759764555345,1.1992,4692.0,4691.9,0.4745]
[1759764555647,0.5958,4692.0,4691.5,0.00262689]
[1759764555838,0.1476,4692.0,4691.5,0.00262689]
[1759764556037,0.5958,4692.0,4691.5,0.00262689]
[1759764556238,0.5958,4691.9,4691.5,0.00262689]
[1759764556536,0.8366,4691.9,4691.8,0.38349]
[1759764556739,0.3626,4691.9,4691.8,3.59129]
[1759764556940,0.3626,4692.3,4692.2,0.38346]
[1759764557444,0.5958,4692.3,4692.2,0.38346]
[1759764557841,0.8366,4692.3,4692.2,0.38346]
[1759764558841,0.8366,4692.3,4692.2,0.30802732]
[1759764559037,0.8438,4691.6,4691.5,0.38613689]
[1759764559243,1.0588,4691.6,4691.5,0.38613689]
[1759764560138,0.3641,4691.6,4691.5,0.38613689]
[1759764560534,0.7522,4692.5,4692.4,0.38344]
[1759764560939,0.9914,4692.5,4692.4,0.38344]
[1759764562442,0.8438,4691.9,4691.8,0.38349]
[1759764562837,1.0588,4691.9,4691.8,0.38349]
[1759764563040,1.0588,4691.9,4691.7,0.3835]
[1759764563235,1.0588,4691.9,4691.6,0.3835]
[1759764563740,1.0588,4691.9,4691.7,0.38349]
[1759764563947,0.5791,4691.8,4691.7,0.38349]
[1759764564447,0.8438,4691.8,4691.7,0.38349]
[1759764567945,1.0588,4691.8,4691.7,0.38349]
[1759764568149,0.3641,4691.8,4691.7,0.38349]
[1759764568447,0.5117,4692.5,4692.4,0.38344]
[1759764568748,0.7522,4692.5,4692.4,0.38344]
[1759764569851,0.9914,4692.5,4692.4,0.38344]
[1759764576255,0.5117,4692.5,4692.4,0.38344]
[1759764576461,0.7382,4692.5,4692.4,0.38344]
[1759764576858,0.9778,4692.5,4692.4,0.38344]
[1759764578762,0.7382,4692.5,4692.4,0.38344]
[1759764578963,0.5117,4692.5,4692.4,5.38344]
[1759764579560,0.215,4693.4,4692.9,0.3834]
[1759764579764,0.4661,4693.4,4693.3,0.85707]
[1759764580065,0.66437686,4693.4,4693.3,4.42597]
[1759764580266,0.2265,4693.4,4693.3,4.42597]
[1759764580466,0.6811,4693.9,4693.8,0.38333]
[1759764580670,1.11898075,4693.9,4693.8,0.38333]
[1759764581070,0.90398075,4693.9,4693.8,0.38333]
[1759764581268,1.11898075,4693.9,4693.8,0.38333]
[1759764581664,1.26458075,4693.9,4693.8,0.38333]
[1759764582062,1.47958075,4693.9,4693.8,0.38333]
[1759764582669,1.26458075,4693.9,4693.8,0.38333]
[1759764583063,1.47958075,4693.9,4693.8,0.38333]
[1759764583464,1.26458075,4693.9,4693.8,0.38333]
[1759764583665,0.8275,4693.4,4693.3,3.59117]
[1759764584266,0.8275,4693.4,4693.3,3.82657]
[1759764585065,0.8275,4693.4,4693.3,3.59117]
[1759764585259,0.8275,4693.4,4693.3,3.2078]
[1759764585865,0.8275,4693.4,4693.2,0.38337]
[1759764586163,1.0425,4693.3,4693.2,0.38337]
[1759764586867,1.0425,4693.3,4693.2,0.61877]
[1759764587068,1.48019259,4693.3,4693.2,0.38337]
[1759764587273,1.26519259,4693.3,4693.2,0.38337]
[1759764587471,1.48019259,4693.3,4693.2,0.38337]
[1759764587773,1.26519259,4693.3,4693.2,0.38337]
[1759764587972,0.4795,4692.9,4692.3,4.16641]
[1759764588163,0.8467,4692.9,4692.8,0.38341]
[1759764588361,1.0617,4692.9,4692.8,0.38341]
[1759764588869,0.8467,4692.9,4692.8,0.61121]
[1759764589074,0.9821,4693.5,4693.4,0.38336]
[1759764589278,1.4197776,4693.5,4693.4,0.84046]
[1759764589470,0.993,4694.0,4693.9,0.84042]
[1759764589667,1.43066216,4694.0,4693.9,0.84042]
[1759764589874,1.43066216,4694.0,4693.9,0.38332]
[1759764590973,1.43066216,4694.0,4693.3,3.2078]
[1759764590974,0.1369,4693.5,4693.3,3.2078]
[1759764591271,0.8467,4693.4,4693.3,3.81897]
[1759764592276,0.6068,4693.4,4693.3,4.04827]
[1759764592476,0.8218,4693.6,4693.5,0.84045]
[1759764592666,1.0617,4693.6,4693.5,0.61115]
[1759764592870,1.0617,4693.6,4693.5,0.38335]
[1759764593676,1.0617,4693.6,4693.5,0.84045]
[1759764594283,1.0617,4693.6,4693.5,0.38335]
[1759764594484,0.8467,4693.6,4693.5,0.61115]
[1759764594685,1.0617,4693.6,4693.5,0.61115]
[1759764595176,1.0617,4693.6,4693.5,0.38335]
[1759764595490,0.8467,4693.6,4693.5,0.38335]
[1759764595683,1.0617,4693.6,4693.5,0.38335]
[1759764596691,1.49964868,4693.6,4693.5,0.38335]
[1759764597284,0.1369,4693.5,4692.8,3.2078]
[1759764597487,0.1369,4693.5,4693.4,0.38335]
[1759764597488,0.6164,4693.5,4693.4,0.38335]
[1759764597882,1.269498,4693.5,4693.4,0.61115]
[1759764598086,1.421698,4693.5,4693.4,0.61115]
[1759764598285,0.438098,4693.5,4693.4,4.40735]
[1759764598590,0.5135,4694.0,4693.9,0.84042]
[1759764598591,0.9681,4694.0,4693.9,0.84042]
[1759764598781,1.4063202,4694.0,4693.9,0.84042]
[1759764598983,1.1913202,4694.0,4693.9,0.84042]
[1759764600198,1.1913202,4694.0,4693.9,1.19952]
[1759764600489,0.8467,4694.4,4694.3,0.61109]
[1759764600684,1.49983674,4694.4,4694.3,0.61109]
[1759764600889,1.04493674,4694.4,4694.3,1.19949]
[1759764601187,0.00173138,4694.7,4694.6,1.19946]
[1759764601380,0.00173138,4694.7,4694.6,4.40726]
[1759764604189,0.84843138,4694.7,4694.6,0.38326]
[1759764604390,0.36893138,4694.7,4694.6,4.40726]
[1759764604593,0.84843138,4694.7,4694.6,3.59106]
[1759764604784,0.84843138,4694.7,4694.6,0.38326]
[1759764605495,0.00173138,4694.7,4694.6,6.19946]
[1759764606490,0.00173138,4694.7,4694.6,1.19946]
[1759764606695,0.00173138,4694.7,4694.6,1.41446]
[1759764607597,0.36893138,4694.7,4694.6,1.41446]
[1759764607898,0.00173138,4694.7,4694.6,1.41446]
[1759764608090,0.84843138,4694.7,4694.6,1.05536]
[1759764608491,0.60853138,4694.7,4694.6,1.05536]
[1759764608800,0.60853138,4694.7,4694.6,1.41446]
[1759764608801,0.00173138,4694.7,4694.6,1.41446]
[1759764608991,0.36893138,4694.7,4694.6,1.41446]
[1759764609497,0.00173138,4694.7,4694.6,1.19946]
[1759764609995,0.84843138,4694.7,4694.6,0.61106]
[1759764610194,0.84843138,4694.7,4694.6,0.38326]
[1759764611188,0.36893138,4694.7,4694.6,0.84036]
[1759764611388,0.00173138,4694.7,4694.6,1.19946]
[1759764613199,0.2396,4695.9,4695.8,0.4571]
[1759764613695,4.0392,4696.5,4696.4,0.38311]
[1759764613998,1.63369664,4696.5,4696.4,0.38311]
[1759764614301,1.63638427,4696.5,4696.4,0.38531515]
[1759764614799,1.42138427,4696.5,4696.4,0.61311515]
[1759764615191,0.98628763,4696.5,4696.4,0.38531515]
[1759764615798,0.98628763,4696.5,4696.4,0.61311515]
[1759764615993,0.98628763,4696.5,4696.4,0.38531515]
[1759764617394,0.98628763,4696.5,4696.4,0.00220515]
[1759764617597,4.19408763,4696.5,4696.4,0.00220515]
[1759764617806,9.19408763,4696.5,4696.4,0.00220515]
[1759764618002,9.62880116,4696.5,4696.4,0.00220515]
[1759764618302,0.2226,4694.9,4694.8,0.2272]
[1759764618607,0.8294,4694.9,4694.8,0.61044]
[1759764619399,0.8294,4694.9,4694.8,0.61214036]
[1759764619602,0.9096,4695.5,4695.4,0.6104]
[1759764619801,0.501,4695.5,4695.4,0.8501]
[1759764620002,0.9663,4695.5,4695.4,0.6104]
[1759764620301,0.9663,4695.5,4695.4,0.3832]
[1759764620507,0.8294,4694.9,4694.8,0.61214036]
[1759764621103,0.8294,4694.9,4694.8,0.38494036]
[1759764621899,0.8294,4694.9,4694.8,0.00170036]
[1759764623007,6.26463328,4694.9,4694.8,0.00170036]
[1759764623210,0.8294,4693.7,4693.6,3.59114]
[1759764623704,0.1369,4693.5,4693.1,3.2078]
[1759764623906,0.3641,4693.3,4693.1,0.38338]
[1759764624113,0.3641,4693.2,4693.1,0.00192007]
[1759764624300,0.36601821,4693.2,4693.1,0.00192007]
[1759764624502,0.48301821,4693.2,4693.1,0.00192007]
[1759764624710,0.58101821,4693.2,4693.1,0.00192007]
[1759764625214,8.78881821,4693.2,4693.1,0.00192007]
[1759764625408,8.78881821,4693.2,4692.0,3.59127]
[1759764625409,0.1369,4692.5,4692.0,3.59127]
[1759764625709,0.1369,4692.5,4691.7,0.3835]
[1759764625710,0.1369,4692.0,4691.7,0.3835]
[1759764625907,0.3641,4691.9,4691.8,0.38348]
[1759764626305,0.5791,4691.9,4691.8,0.00263492]
[1759764627308,0.3641,4691.9,4691.8,0.00263492]
[1759764627502,0.5791,4691.9,4691.8,0.00263492]
[1759764628508,0.3641,4691.9,4691.8,0.00263492]
[1759764628911,0.5791,4691.9,4691.8,0.00263492]
[1759764629114,0.501,4692.5,4692.4,0.38344]
[1759764629609,0.1369,4693.0,4692.8,0.38341]
[1759764629610,0.3641,4692.9,4692.8,0.38341]
[1759764629808,0.36601821,4693.2,4693.1,0.38338]
[1759764630003,0.36601821,4693.2,4693.1,3.59118]
[1759764630208,0.36601821,4693.2,4693.1,0.38338]
[1759764630710,0.36601821,4693.2,4693.1,3.94348]
[1759764630711,0.00191821,4693.2,4693.1,3.94348]
[1759764631103,0.36601821,4693.2,4693.1,3.59118]
[1759764631311,0.00191821,4693.2,4693.1,3.94348]
[1759764631809,0.3641,4694.3,4694.2,0.38329]
[1759764632918,0.36613077,4694.3,4694.2,0.38329]
[1759764633119,0.501,4694.0,4693.8,0.38332]
[1759764633307,0.5791,4693.9,4693.8,0.38332]
[1759764633508,0.1369,4693.5,4692.4,0.9586]
[1759764633712,0.1369,4693.5,4692.7,3.2078]
[1759764633713,0.1369,4693.0,4692.7,3.2078]
[1759764633919,0.1369,4693.0,4692.4,0.38344]
[1759764633920,0.501,4692.5,4692.4,0.38344]
[1759764634316,0.501,4692.5,4692.2,0.38345]
[1759764634614,0.3641,4692.4,4692.3,0.15735629]
[1759764634807,0.5791,4692.4,4692.3,0.15735629]
[1759764635318,5.5791,4692.4,4692.3,0.15735629]
[1759764635512,5.5791,4692.4,4691.8,0.00263492]
[1759764635513,0.1427,4692.0,4691.8,0.38612492]
[1759764635719,3.76,4691.9,4691.8,0.38612492]
[1759764636520,8.76,4691.9,4691.8,0.00263492]
[1759764637307,8.545,4691.9,4691.8,0.00263492]
[1759764637518,8.76,4691.9,4691.8,0.00263492]
[1759764637914,3.545,4691.9,4691.8,0.00263492]
[1759764638216,0.1427,4691.0,4690.9,0.38356]
[1759764638420,0.1427,4691.5,4690.8,3.2078]
[1759764638421,0.1427,4691.5,4691.3,0.38353]
[1759764638618,0.5522,4691.4,4691.3,0.38353]
[1759764638919,0.5522,4691.4,4691.2,0.38353]
[1759764639116,0.3372,4691.3,4691.2,0.00225245]
[1759764639617,0.5522,4691.3,4691.2,0.00225245]
[1759764640209,0.1427,4690.5,4690.4,0.3836]
[1759764640410,0.4799,4690.5,4690.4,0.3836]
[1759764640710,0.6949,4690.5,4690.4,0.3836]
[1759764641316,0.6949,4690.5,4690.4,0.38601697]
[1759764642019,0.6949,4690.5,4690.4,0.00241697]
[1759764643618,0.5522,4690.5,4690.4,0.00241697]
[1759764644013,0.6949,4690.5,4690.4,0.00241697]
[1759764644210,0.3372,4688.9,4688.3,3.2078]
[1759764644415,0.3372,4688.9,4687.9,0.02133174]
[1759764644416,0.3372,4688.4,4687.9,0.02133174]
[1759764644618,0.4799,4688.0,4687.9,0.02133174]
[1759764645215,0.48218478,4688.0,4687.9,0.0232199]
[1759764645419,5.48218478,4688.0,4687.9,0.0232199]
[1759764646223,0.69718478,4688.0,4687.9,0.0232199]
[1759764646427,5.69718478,4688.0,4687.9,0.0232199]
[1759764646726,0.3372,4686.9,4686.7,3.2078]
[1759764646922,0.5522,4686.8,4686.7,3.2078]
[1759764647127,0.3372,4686.8,4686.7,3.2078]
[1759764647318,33.263,4687.4,4686.8,0.3516]
[1759764647519,33.263,4687.4,4687.3,3.94326]
[1759764647720,0.00228478,4688.0,4687.9,0.73541]
[1759764648019,3.2078,4688.9,4688.3,0.95943]
[1759764648218,0.215,4688.8,4688.7,0.38374]
[1759764648525,0.3448,4688.7,4688.6,0.38374]
[1759764649222,0.34746512,4688.7,4688.0,0.3575]
[1759764649424,0.3448,4688.6,4688.5,0.38375]
[1759764649816,0.5598,4688.6,4688.5,0.38375]
[1759764650023,0.5598,4688.6,4688.0,0.3575]
[1759764650219,0.3448,4688.5,4688.4,0.38376]
[1759764650426,0.215,4688.5,4688.1,0.38379]
[1759764650630,0.34746512,4688.7,4688.5,0.74126]
[1759764650826,0.5598,4688.6,4688.4,0.38376]
[1759764651026,0.3448,4688.4,4687.9,3.59161]
[1759764651226,3.5526,4688.4,4688.2,0.38378]
[1759764651525,0.3448,4688.3,4688.2,0.38378]
[1759764651932,0.3448,4688.3,4688.1,0.38379]
[1759764652129,0.3448,4688.1,4688.0,0.3838]
[1759764652329,3.5526,4688.4,4688.3,0.38378]
[1759764652529,3.7676,4688.4,4688.3,0.38378]
[1759764653132,0.3448,4688.3,4688.1,0.38379]
[1759764653329,0.00266512,4688.7,4687.7,3.2078]
[1759764653330,0.00266512,4688.7,4688.5,0.38376]
[1759764653633,0.00266512,4688.7,4688.6,0.3575]
[1759764653833,0.56246512,4688.7,4688.5,0.38376]
[1759764654027,0.1323,4688.5,4688.3,3.59157]
[1759764654221,0.3448,4688.4,4688.3,3.59157]
[1759764654428,0.00266512,4688.7,4688.6,0.74125]
[1759764654727,0.3448,4688.6,4688.5,0.38375]
[1759764654923,5.3448,4688.6,4687.7,3.2078]
[1759764655125,0.3448,4687.4,4686.5,0.1239]
[1759764655328,0.215,4687.4,4687.2,0.38387]
[1759764655524,0.5598,4687.4,4687.2,0.38387]
[1759764655727,0.3448,4687.4,4687.2,0.38386]
[1759764655922,0.3448,4687.3,4686.2,0.3575]
[1759764656228,3.5526,4686.8,4686.4,0.38392]
[1759764656531,0.4771,4686.5,4685.8,0.38398]
[1759764656726,0.3448,4686.1,4685.8,0.38398]
[1759764656923,3.2078,4686.0,4685.8,0.36013872]
[1759764657132,3.5526,4686.0,4685.8,0.74410872]
[1759764657426,3.5526,4686.0,4685.9,0.3575]
[1759764657427,3.2078,4686.0,4685.9,0.3575]
[1759764657644,0.01072378,4686.2,4686.1,0.3575]
[1759764658423,0.3448,4687.7,4687.1,0.38387]
[1759764658623,0.3448,4687.7,4687.4,0.38384]
[1759764658928,0.3448,4687.7,4687.0,0.50778]
[1759764659129,3.59162,4687.8,4687.0,0.3575]
[1759764659327,3.2078,4687.3,4687.1,0.3575]
[1759764659525,0.1323,4687.5,4687.2,0.3575]
[1759764659835,3.5526,4687.3,4686.8,0.38389]
[1759764660030,0.5598,4687.2,4686.8,0.38389]
[1759764660330,0.3448,4687.1,4686.6,0.74141]
[1759764660534,0.3448,4687.1,4686.8,0.3575]
[1759764660734,0.3448,4687.1,4686.3,40.8]
[1759764660735,0.3448,4687.1,4687.0,0.74137]
[1759764661030,0.215,4687.2,4687.1,0.38387]
[1759764661230,0.215,4687.3,4687.1,0.38387]
[1759764661429,0.3448,4687.2,4687.1,0.38387]
[1759764661734,0.215,4687.3,4687.2,0.3575]
[1759764662031,0.3448,4687.7,4687.3,0.38386]
[1759764662230,0.3448,4686.4,4685.2,3.5653]
[1759764662433,3.2078,4686.3,4685.9,0.38396]
[1759764662733,3.2078,4686.3,4686.0,0.38396]
[1759764663039,0.5598,4686.5,4686.3,0.3575]
[1759764663231,0.5598,4686.5,4686.3,0.38393]
[1759764663428,0.3448,4686.4,4686.3,0.38393]
[1759764664230,3.5526,4686.8,4686.7,0.38391]
[1759764664434,3.7676,4686.8,4686.7,0.38391]
[1759764664634,3.7676,4686.8,4686.5,0.38392]
[1759764664831,0.3448,4686.7,4686.5,0.38392]
[1759764665034,3.4228,4686.8,4686.5,0.38392]
[1759764665527,0.3448,4686.7,4686.5,0.38392]
[1759764665725,3.4228,4686.8,4686.5,0.38392]
[1759764666134,0.3448,4686.7,4686.4,0.38393]
[1759764666437,0.215,4686.6,4686.3,0.38394]
[1759764666633,0.3448,4685.9,4684.9,3.2078]
[1759764666930,0.3448,4685.4,4684.4,3.2078]
[1759764667134,0.3448,4685.2,4684.3,0.3575]
[1759764667330,0.3448,4684.9,4684.6,0.38408]
[1759764667531,0.3448,4684.9,4684.8,0.38406]
[1759764667733,0.3448,4684.8,4684.2,0.38411]
[1759764667935,3.5526,4684.8,4684.2,0.38575077]
[1759764668232,0.3448,4684.4,4684.2,0.38575077]
[1759764668433,0.5598,4684.3,4684.2,0.38575077]
[1759764668828,0.0015543,4684.9,4684.2,0.35914077]
[1759764669038,0.0015543,4684.9,4684.8,0.38406]
[1759764669240,0.0015543,4684.9,4684.8,0.74156]
[1759764670239,0.0015543,4684.9,4684.8,0.3575]
[1759764670449,0.3463543,4684.9,4684.7,0.3575]
[1759764671031,0.0015543,4684.9,4684.8,0.3575]
[1759764672646,3.2078,4685.8,4685.7,0.74149]
[1759764672947,3.4228,4686.4,4686.2,0.74145]
[1759764673146,3.4228,4686.4,4686.0,0.38396]
[1759764673348,3.2078,4686.4,4686.1,0.38395]
[1759764673548,0.5598,4686.3,4686.1,0.38395]
[1759764673745,0.3448,4686.2,4686.1,0.38395]
[1759764673941,0.3448,4685.6,4685.1,3.2078]
[1759764674247,0.3448,4685.6,4685.2,0.38403]
[1759764674248,0.3473,4685.5,4685.2,0.38403]
[1759764674549,0.78277301,4685.5,4685.3,0.38402]
[1759764674748,0.43547301,4685.4,4684.7,0.3575]
[1759764674942,0.5598,4685.5,4684.7,0.3575]
[1759764675142,0.43545631,4685.4,4685.2,0.38403]
[1759764675350,3.4228,4685.6,4685.5,0.3575]
[1759764675545,3.64319577,4685.6,4685.5,0.3575]
[1759764675745,0.43539577,4685.6,4685.5,0.3575]
[1759764675947,0.43539577,4685.6,4685.1,0.9601]
[1759764675948,0.5598,4685.9,4685.3,0.3575]
[1759764676142,0.43537115,4685.8,4685.7,0.38399]
[1759764676449,0.3448,4685.6,4685.0,0.3575]
[1759764676646,0.3448,4685.4,4684.6,0.3575]
[1759764676849,3.2078,4685.7,4685.2,0.38403]
[1759764677043,0.215,4685.6,4685.1,0.38403]
[1759764677348,0.3448,4685.5,4685.2,0.74153]
[1759764677542,0.5598,4685.4,4685.3,0.38402]
[1759764677945,0.5598,4685.4,4685.3,0.76092]
[1759764678148,0.215,4685.4,4685.3,0.76092]
[1759764678855,3.5491,4685.7,4685.6,0.384]
[1759764679054,3.5491,4685.7,4685.3,0.3769]
[1759764679055,0.3413,4685.6,4685.3,0.3769]
[1759764679242,0.3413,4685.6,4685.5,0.384]
[1759764679441,0.77695743,4685.6,4685.5,0.384]
[1759764679653,0.99195743,4685.6,4685.5,0.384]
[1759764679847,0.5563,4685.6,4685.5,0.384]
[1759764680552,0.5563,4685.6,4685.3,0.38402]
[1759764680753,0.3413,4685.5,4685.4,0.38401]
[1759764680945,0.3413,4685.5,4684.9,0.3769]
[1759764681146,0.3413,4685.4,4685.3,0.38402]
[1759764681352,0.3413,4685.4,4684.8,0.3769]
[1759764681550,0.15,4684.5,4683.7,4.16818]
[1759764681753,0.15,4684.5,4684.2,0.38575077]
[1759764681754,0.3413,4684.4,4684.2,0.38575077]
[1759764681947,0.15,4684.5,4684.2,0.38575077]
[1759764682146,0.3413,4684.4,4684.2,0.38575077]
[1759764682354,0.15,4684.5,4684.3,0.3841]
[1759764682557,0.3413,4684.4,4684.3,0.3841]
[1759764683046,0.15,4684.5,4684.3,0.3841]
[1759764683249,0.3413,4684.9,4684.8,0.76096]
[1759764683450,0.3413,4685.4,4684.7,0.3769]
[1759764683655,3.2078,4685.7,4684.5,0.1423]
[1759764683656,0.43613095,4685.3,4685.2,0.38403]
[1759764683849,0.215,4685.6,4685.2,0.3769]
[1759764684056,0.215,4685.6,4685.2,0.38402]
[1759764684257,0.3413,4685.5,4685.4,0.38401]
[1759764686350,0.3413,4685.5,4685.4,0.76091]
[1759764686550,3.2078,4685.7,4685.6,0.384]
[1759764686753,4.20072808,4685.7,4685.6,0.7609]
[1759764686957,4.20072808,4685.7,4685.6,0.384]
[1759764687157,4.20072808,4685.7,4685.4,0.38401]
[1759764687349,0.43663616,4685.6,4684.9,0.96014]
[1759764687554,0.215,4685.6,4685.0,0.96012]
[1759764687757,0.215,4685.6,4684.5,0.3573]
[1759764687758,0.38403,4685.2,4684.2,3.20944077]
[1759764687956,0.38403,4685.2,4684.7,0.38407]
[1759764687957,0.3413,4684.9,4684.7,0.38407]
[1759764688262,0.215,4684.8,4684.2,0.00164077]
[1759764688764,0.215,4684.8,4684.4,0.38409]
[1759764688765,0.4913,4684.5,4684.4,0.38409]
[1759764689158,0.3413,4685.0,4684.9,0.38405]
[1759764689362,3.2078,4685.2,4684.9,0.3769]
[1759764689661,0.43686217,4685.1,4685.0,0.76095]
[1759764690266,0.3413,4685.5,4685.4,0.38401]
[1759764690566,0.77816063,4685.5,4685.4,0.38401]
[1759764690766,0.43686063,4685.5,4685.4,0.76091]
[1759764691861,0.43686063,4685.5,4684.9,5.12808]
[1759764691862,0.3413,4686.0,4685.9,0.38397]
[1759764692062,0.3413,4686.0,4685.9,0.76087]
[1759764692263,0.77830492,4686.0,4685.1,0.3769]
[1759764692459,0.43700492,4685.9,4684.9,3.2078]
[1759764692662,0.3413,4685.3,4684.4,3.2078]
[1759764692867,0.43700492,4685.2,4685.0,0.38404]
[1759764693164,0.43700492,4685.2,4685.1,0.3769]
[1759764693363,0.77830492,4685.2,4685.1,0.3769]
[1759764693969,0.43700492,4685.2,4685.1,0.3769]
[1759764694156,3.2078,4685.4,4685.2,0.38403]
[1759764694360,0.4373995,4685.3,4685.2,0.76093]
[1759764694562,0.7786995,4685.3,4685.2,0.38403]
[1759764695565,0.4373995,4685.3,4685.2,0.72983]
[1759764695960,0.7976995,4685.3,4684.4,0.3458]
[1759764696167,0.3603,4684.7,4684.5,0.38409]
[1759764696466,3.2078,4684.8,4684.2,0.00164077]
[1759764696467,0.3603,4684.3,4684.2,0.00164077]
[1759764696662,3.7831,4684.3,4684.2,0.00164077]
[1759764696866,4.22305,4684.3,4684.2,0.00164077]
[1759764698367,9.22305,4684.3,4684.2,0.00164077]
[1759764698768,4.22305,4684.3,4684.2,0.00164077]
[1759764699164,4.00805,4684.3,4684.2,0.00164077]
[1759764699368,4.22305,4684.3,4684.2,0.00164077]
[1759764700869,9.22305,4684.3,4684.2,0.00164077]
[1759764701970,4.00805,4684.3,4684.2,0.00164077]
[1759764702271,4.22305,4684.3,4684.2,0.00164077]
[1759764703369,0.5086,4683.0,4682.8,0.38422]
[1759764703571,0.5086,4683.0,4682.2,4.36012546]
[1759764703770,0.5086,4683.0,4682.7,0.40676052]
[1759764703970,0.5086,4683.0,4682.7,0.02253052]
[1759764704370,5.95281632,4683.0,4682.9,0.02305518]
[1759764704573,0.1483,4682.0,4681.7,0.38431]
[1759764704881,0.3603,4681.9,4681.2,3.2078]
[1759764705175,0.3603,4681.9,4680.5,0.1423]
[1759764705176,0.1483,4681.5,4680.7,3.2078]
[1759764705365,0.215,4681.4,4681.0,0.38437]
[1759764705569,0.215,4681.4,4681.0,0.38590467]
[1759764705769,0.59935,4681.4,4681.0,0.00153467]
[1759764705972,0.3603,4681.1,4681.0,0.00153467]
[1759764706373,0.3603,4681.4,4681.1,0.3458]
[1759764706574,0.3603,4681.4,4681.2,0.38436]
[1759764706872,0.5753,4681.5,4681.0,0.00153467]
[1759764707072,0.3603,4681.4,4681.0,0.00153467]
[1759764707272,0.3633,4681.5,4681.0,0.00153467]
[1759764707273,3.5681,4681.1,4681.0,0.00153467]
[1759764707478,3.7831,4681.1,4681.0,0.00153467]
[1759764708277,4.16747,4681.1,4681.0,0.00153467]
[1759764708868,3.7831,4681.1,4681.0,0.00153467]
[1759764709682,3.5681,4681.1,4681.0,0.00153467]
[1759764709868,3.7831,4681.1,4681.0,0.00153467]
[1759764710278,3.5681,4681.1,4681.0,0.00153467]
[1759764710581,3.7831,4681.1,4681.0,0.00153467]
[1759764710978,0.3603,4681.1,4681.0,0.34203467]
[1759764711180,0.5543,4681.4,4681.1,0.3405]
[1759764711480,0.3393,4681.3,4681.2,0.38436]
[1759764711670,0.3393,4681.3,4681.2,0.72486]
[1759764712178,3.2078,4681.6,4681.5,0.72483]
[1759764712374,3.5471,4681.6,4681.5,0.38433]
[1759764712974,0.72365,4681.4,4681.0,0.00153467]
[1759764713178,3.5471,4681.1,4681.0,0.00153467]
[1759764713483,0.3393,4680.7,4680.1,40.8]
[1759764713684,0.5543,4680.6,4680.5,0.38441]
[1759764713976,0.5543,4680.6,4679.4,3.2078]
[1759764713977,0.3393,4679.9,4679.4,3.2078]
[1759764714183,0.3393,4679.9,4679.8,0.38447]
[1759764714385,0.3393,4680.4,4680.3,0.38443]
[1759764714681,0.3393,4680.9,4680.8,0.38439]
[1759764714979,3.5471,4681.2,4681.1,0.38437]
[1759764715186,3.2078,4681.2,4681.1,0.3405]
[1759764715385,3.2078,4681.7,4681.2,0.3405]
[1759764715683,0.486,4682.5,4681.3,0.3405]
[1759764715877,0.486,4682.5,4681.7,3.2078]
[1759764716084,0.3393,4682.5,4681.8,0.3405]
[1759764716479,0.486,4682.5,4681.7,3.4238]
[1759764716675,0.216,4682.7,4681.8,0.3405]
[1759764716987,0.3393,4682.8,4682.0,0.3405]
[1759764717179,0.3393,4682.8,4681.7,3.2078]
[1759764717180,0.216,4682.9,4681.7,3.2078]
[1759764717380,0.3393,4682.8,4681.7,3.2078]
[1759764717575,0.216,4682.9,4681.7,3.2078]
[1759764717785,0.3393,4682.8,4681.7,3.4238]
[1759764718176,0.216,4682.9,4681.7,3.4238]
[1759764718381,0.3393,4682.8,4681.7,3.4238]
[1759764718689,0.3393,4682.8,4681.8,0.3405]
[1759764719088,0.00259869,4683.0,4681.8,0.3405]
[1759764719286,0.00259869,4683.0,4682.6,0.3405]
[1759764719478,0.00259869,4683.0,4682.5,0.4794]
[1759764719683,0.3393,4682.9,4682.6,0.3405]
[1759764719877,0.3393,4682.9,4682.5,0.3405]
[1759764720078,0.3393,4682.9,4682.4,3.2078]
[1759764720483,0.00259869,4683.0,4682.5,0.3405]
[1759764720680,0.34189869,4683.0,4682.5,0.3405]
[1759764720886,0.3393,4682.9,4682.6,0.3405]
[1759764721407,0.00259869,4683.0,4682.6,0.3405]
[1759764721988,0.3393,4682.9,4682.6,0.3405]
[1759764722185,0.216,4682.8,4682.4,3.2078]
[1759764722387,0.3393,4680.9,4680.3,0.00158763]
[1759764722787,0.1467,4681.5,4680.5,0.1389]